[Event "11th Arad Open 2018"]
[Site "Arad"]
[Date "2018.08.12"]
[Round "9"]
[White "Bai, Adelard"]
[Black "Weinzettl, Ernst"]
[Result "1/2-1/2"]
[ECO "A05"]
[WhiteElo "2071"]
[BlackElo "2215"]
[Annotator "NA"]
[PlyCount "54"]
[EventDate "2018.08.05"]
[EventType "swiss"]
[EventCountry "ROU"]
[SourceTitle "playchess.com"]
[Source "ChessBase"]
[SourceQuality "1"]
[TimeControl "40/5400+30:1800+30"]

1. Nf3 {[%emt 0:00:00]} Nf6 {[%emt 0:00:00]} 2. g3 {[%emt 0:00:00]} g6 {[%emt 0:00:11]} 3. Bg2 {[%emt 0:00:03]} Bg7 {[%emt 0:00:10]} 4. O-O {[%emt 0:01:57]} O-O {[%emt 0:00:08]} 5. d3 {[%emt 0:00:06]} d5 {[%emt 0:01:52]} 6. Nbd2 {[%emt 0:01:15]} c5 {[%emt 0:00:12]} 7. e4 {[%emt 0:00:25]} Nc6 {[%emt 0:00:22]} 8. Re1 {[%emt 0:00:12]} e6 {[%emt 0:00:34]} 9. c3 {[%emt 0:01:35]} a5 {[%emt 0:03:23]} 10. e5 {[%emt 0:01:11]} Ng4 {[%emt 0:00:29]} 11. d4 {[%emt 0:00:34]} cxd4 {[%emt 0:00:19]} 12. cxd4 {[%emt 0:00:07]} f6 {[%emt 0:00:28]} 13. h3 {[%emt 0:23:31]} Nxf2 {[%emt 0:00:22]} 14. Kxf2 {[%emt 0:00:13]} fxe5 {[%emt 0:00:09]} 15. Kg1 {[%emt 0:05:13]} e4 {[%emt 0:00:56]} 16. Nxe4 {[%emt 0:12:50]} dxe4 {[%emt 0:00:11]} 17. Rxe4 {[%emt 0:00:06]} Rf5 {[%emt 0:10:57]} 18. Be3 {[%emt 0:06:57]} Rd5 {[%emt 0:02:24]} 19. Bf1 {[%emt 0:02:14]} Kh8 {[%emt 0:14:24]} 20. Bc4 {[%emt 0:01:56]} Rf5 {[%emt 0:00:14]} 21. Nh4 {[%emt 0:03:21]} Rf8 {[%emt 0:05:03]} 22. Qg4 {[%emt 0:02:28]} Qe8 {[%emt 0:22:04]} 23. Qe2 {[%emt 0:14:59]} Qd8 24. Qg4 Qd5 25. Bxd5 exd5 26. Nxg6+ hxg6 27. Qh4+ Kg8 1/2-1/2

[Event "11th Arad Open 2018"]
[Site "Arad"]
[Date "2018.08.12"]
[Round "9"]
[White "Craciun, Alexandru-Emilian"]
[Black "Abramciuc, Marius"]
[Result "1/2-1/2"]
[ECO "C89"]
[WhiteElo "2069"]
[BlackElo "2357"]
[Annotator "NA"]
[PlyCount "67"]
[EventDate "2018.08.05"]
[EventType "swiss"]
[EventCountry "ROU"]
[SourceTitle "playchess.com"]
[Source "ChessBase"]
[SourceQuality "1"]
[TimeControl "40/5400+30:1800+30"]

1. e4 {[%emt 0:00:00]} e5 {[%emt 0:00:00]} 2. Nf3 {[%emt 0:00:00]} Nc6 {[%emt 0:00:00]} 3. Bb5 {[%emt 0:00:00]} a6 {[%emt 0:00:00]} 4. Ba4 {[%emt 0:00:00]} Nf6 {[%emt 0:00:00]} 5. O-O {[%emt 0:00:09]} Be7 {[%emt 0:00:00]} 6. Re1 {[%emt 0:00:11]} b5 {[%emt 0:00:00]} 7. Bb3 {[%emt 0:00:08]} O-O {[%emt 0:00:00]} 8. c3 {[%emt 0:00:13]} d5 {[%emt 0:00:00]} 9. d3 $11 {[%emt 0:02:05] LiveBook: 16 Games} dxe4 {[%emt 0:06:16]} 10. dxe4 {[%emt 0:00:09]} Qxd1 {[%emt 0:00:02]} 11. Bxd1 {[%emt 0:00:38]} Bb7 {[%emt 0:02:37]} 12. Bc2 {[%emt 0:00:58]} h6 {[%emt 0:01:25]} 13. Nbd2 {[%emt 0:01:40]} Rfe8 {[%emt 0:00:18]} 14. Nb3 {[%emt 0:04:37]} Bf8 {[%emt 0:03:44]} 15. Be3 {[%emt 0:01:33]} Nb8 {[%emt 0:07:58]} 16. Bc5 {[%emt 0:02:16]} Nbd7 {[%emt 0:04:48]} 17. Bxf8 {[%emt 0:00:17]} Kxf8 {[%emt 0:00:04]} 18. Nfd2 {[%emt 0:06:33]} Rad8 {[%emt 0:03:59]} 19. a4 {[%emt 0:03:28]} c5 {[%emt 0:03:37]} 20. axb5 {[%emt 0:02:26]} axb5 {[%emt 0:00:03]} 21. Nf1 {[%emt 0:07:07]} c4 {[%emt 0:00:57]} 22. Na5 {[%emt 0:02:06]} Ba8 {[%emt 0:00:21]} 23. f3 {[%emt 0:00:40]} Nc5 {[%emt 0:00:41]} 24. b3 {[%emt 0:01:44]} cxb3 {[%emt 0:01:55]} 25. Nxb3 {[%emt 0:01:05]} Rc8 {[%emt 0:03:38]} 26. Ra5 {[%emt 0:09:24]} Nxb3 {[%emt 0:00:26]} 27. Bxb3 {[%emt 0:00:15]} Bc6 {[%emt 0:00:06]} 28. Ne3 {[%emt 0:02:09]} Ra8 {[%emt 0:06:41]} 29. Rea1 {[%emt 0:00:53]} Rxa5 {[%emt 0:00:04]} 30. Rxa5 {[%emt 0:00:03]} Rd8 {[%emt 0:01:57]} 31. Ra7 {[%emt 0:02:18]} Be8 {[%emt 0:00:18]} 32. Nd5 {[%emt 0:04:26]} Rc8 {[%emt 0:02:01]} 33. Nc7 Bd7 {[%emt 0:01:19]} 34. c4 {[%emt 0:03:48]} 1/2-1/2

[Event "11th Arad Open 2018"]
[Site "Arad"]
[Date "2018.08.12"]
[Round "9"]
[White "Solcanean, Serghei"]
[Black "Gheorghiu, Calin"]
[Result "0-1"]
[ECO "C11"]
[WhiteElo "2051"]
[BlackElo "2292"]
[Annotator "NA"]
[PlyCount "68"]
[EventDate "2018.08.05"]
[EventType "swiss"]
[EventCountry "ROU"]
[SourceTitle "playchess.com"]
[Source "ChessBase"]
[SourceQuality "1"]
[TimeControl "40/5400+30:1800+30"]

1. e4 {[%emt 0:06:55]} e6 {[%emt 0:00:18]} 2. d4 {[%emt 0:00:06]} d5 {[%emt 0:00:05]} 3. Nc3 {[%emt 0:00:05]} Nf6 {[%emt 0:00:16]} 4. Bg5 {[%emt 0:00:07]} dxe4 {[%emt 0:01:11]} 5. Nxe4 {[%emt 0:00:15]} Be7 {[%emt 0:00:03]} 6. Bxf6 {[%emt 0:00:24]} gxf6 {[%emt 0:00:05]} 7. Nf3 {[%emt 0:00:09]} a6 {[%emt 0:02:40]} 8. c3 {[%emt 0:00:41]} b6 {[%emt 0:03:16]} 9. Bd3 {[%emt 0:00:48]} Bb7 {[%emt 0:00:17]} 10. Qe2 {[%emt 0:00:48]} Nd7 {[%emt 0:02:28]} 11. O-O-O {[%emt 0:00:13]} O-O {[%emt 0:11:08]} 12. h4 {[%emt 0:00:57]} f5 {[%emt 0:01:36]} 13. Ned2 c5 {[%emt 0:01:22]} 14. Nb3 {[%emt 0:03:03]} Qc7 {[%emt 0:01:24]} 15. dxc5 {[%emt 0:00:47]} Bxf3 {[%emt 0:06:54]} 16. Qxf3 {[%emt 0:01:20]} bxc5 {[%emt 0:00:18]} 17. Nd2 {[%emt 0:16:43]} Qa5 {[%emt 0:02:25]} 18. Bb1 {[%emt 0:02:10]} Nf6 {[%emt 0:02:42]} 19. Nc4 {[%emt 0:04:51]} Qb5 {[%emt 0:03:48]} 20. Qe2 {[%emt 0:03:14]} Rfd8 {[%emt 0:03:50]} 21. Bxf5 {[%emt 0:02:47]} Kf8 {[%emt 0:03:52]} 22. Bd3 {[%emt 0:00:50]} Rab8 {[%emt 0:01:32]} 23. g4 {[%emt 0:03:01]} Nd5 {[%emt 0:01:30]} 24. Qe4 {[%emt 0:03:27]} Bf6 {[%emt 0:01:58]} 25. Rd2 {[%emt 0:03:02]} Qa4 {[%emt 0:05:24]} 26. Bb1 {[%emt 0:09:02]} Bxc3 {[%emt 0:00:05]} 27. Rc2 {[%emt 0:03:00]} Bd4 {[%emt 0:05:03]} 28. b3 {[%emt 0:02:17]} Qb4 {[%emt 0:00:18]} 29. Qxh7 {[%emt 0:00:53]} Nc3 {[%emt 0:02:20]} 30. g5 {[%emt 0:07:10]} Bg7 {[%emt 0:01:51]} 31. Rd2 {[%emt 0:05:40]} Rxd2 {[%emt 0:03:21]} 32. Nxd2 {[%emt 0:00:21]} Rd8 {[%emt 0:00:33]} 33. Qc2 {[%emt 0:03:49]} Qa3+ {[%emt 0:00:13]} 34. Qb2 {[%emt 0:00:09]} Nxa2+ {[%emt 0:00:12]} 0-1